bitfinex/quotes_BTCUSD_20251224
["timestamp","ask_amount","ask_price","bid_price","bid_amount"]
[1766567548404,0.01897239,86911.0,86900.0,0.12731]
[1766567550274,0.01150681,86905.0,86900.0,0.12731]
[1766567550673,0.06904286,86903.0,86900.0,0.12731]
[1766567551094,0.01150708,86903.0,86900.0,0.12731]
[1766567551442,0.05753607,86902.0,86900.0,0.12731]
[1766567552370,0.06904316,86903.0,86900.0,0.12731]
[1766567552610,0.05753607,86902.0,86900.0,0.12731]
[1766567554518,0.06904316,86903.0,86900.0,0.12731]
[1766567557049,0.01150708,86903.0,86900.0,0.12731]
[1766567558372,0.06904284,86903.0,86900.0,0.12731]
[1766567558534,0.01150708,86903.0,86900.0,0.12731]
[1766567558937,0.23013105,86907.0,86900.0,0.12731]
[1766567559135,0.01150708,86903.0,86900.0,0.12731]
[1766567559325,0.06904279,86903.0,86900.0,0.12731]
[1766567559525,0.01150708,86903.0,86900.0,0.12731]
[1766567559725,0.01150708,86903.0,86900.0,0.16186371]
[1766567563619,0.06904289,86903.0,86900.0,0.16186371]
[1766567565953,0.06904289,86903.0,86880.0,0.11776]
[1766567565954,0.01150853,86892.0,86880.0,0.11776]
[1766567566213,0.01150959,86884.0,86880.0,0.11776]
[1766567566470,0.01150946,86885.0,86881.0,0.12928]
[1766567566672,0.01150959,86884.0,86881.0,0.12928]
[1766567566819,0.01150946,86885.0,86881.0,0.12928]
[1766567567218,0.01150959,86884.0,86881.0,0.12928]
[1766567567423,0.01150946,86885.0,86881.0,0.12928]
[1766567567892,0.06905619,86886.0,86881.0,0.12928]
[1766567568043,0.01150946,86885.0,86881.0,0.12928]
[1766567568260,0.01150959,86884.0,86881.0,0.12928]
[1766567569322,0.03455984,86889.0,86884.0,0.000549]
[1766567569538,0.01150946,86885.0,86884.0,0.000549]
[1766567569733,0.01150946,86885.0,86881.0,0.12928]
[1766567569734,0.01150959,86884.0,86881.0,0.12928]
[1766567570413,0.01150946,86885.0,86881.0,0.12928]
[1766567570770,0.01150946,86885.0,86871.0,0.01151132]
[1766567570771,0.01150999,86881.0,86871.0,0.11776]
[1766567570971,0.01151012,86880.0,86872.0,0.01152]
[1766567572206,0.01151079,86875.0,86872.0,0.01152]
[1766567572381,0.01151079,86875.0,86871.0,0.11776]
[1766567572382,0.05755907,86868.0,86861.0,0.03456378]
[1766567572578,0.23022014,86874.0,86862.0,0.01152]
[1766567572579,0.01151185,86867.0,86862.0,0.01152]
[1766567572786,0.01096285,86867.0,86862.0,0.01152]
[1766567572994,0.03456928,86866.0,86862.0,0.01152]
[1766567573397,0.04608126,86866.0,86862.0,0.01152]
[1766567573701,0.03456928,86866.0,86862.0,0.01152]
[1766567574375,0.03401928,86866.0,86862.0,0.01152]
[1766567574777,0.01151185,86867.0,86862.0,0.01152]
[1766567575101,0.03401928,86867.0,86862.0,0.01152]
[1766567575271,0.04553113,86867.0,86862.0,0.01152]
[1766567575676,0.03401928,86867.0,86862.0,0.01152]
[1766567576754,0.01152,86873.0,86862.0,0.12928]
[1766567576959,0.0575523,86878.0,86863.0,0.11776]
[1766567577166,0.01151052,86877.0,86866.0,0.11776]
[1766567577440,0.01151052,86877.0,86868.0,0.11776]
[1766567578227,0.01151065,86876.0,86868.0,0.11776]
[1766567578512,0.01151039,86878.0,86868.0,0.11776]
[1766567578849,0.01151052,86877.0,86868.0,0.11776]
[1766567579097,0.41394986,86880.0,86868.0,0.11776]
[1766567579329,0.36787234,86880.0,86870.0,0.11502]
[1766567579454,0.37938246,86880.0,86870.0,0.11502]
[1766567579649,0.37938246,86880.0,86868.0,0.01151171]
[1766567579650,0.02302986,86882.0,86871.0,0.11502]
[1766567579850,0.05754845,86884.0,86873.0,0.11502]
[1766567579851,0.01150959,86884.0,86873.0,0.11502]
[1766567580051,0.01150973,86883.0,86873.0,0.11502]
[1766567580252,0.01150999,86881.0,86873.0,0.11502]
[1766567580702,0.01150986,86882.0,86873.0,0.11502]
[1766567581563,0.01150999,86881.0,86873.0,0.11502]
[1766567581784,0.01150986,86882.0,86873.0,0.11502]
[1766567581985,0.01151026,86879.0,86873.0,0.11502]
[1766567582303,0.01150973,86883.0,86868.0,0.01152]
[1766567582304,0.01151118,86872.0,86868.0,0.01152]
[1766567582504,0.01151105,86873.0,86868.0,0.01152]
[1766567582668,0.01151092,86874.0,86868.0,0.01152]
[1766567582875,0.01150986,86882.0,86869.0,0.12653158]
[1766567583128,0.01150999,86881.0,86869.0,0.11502]
[1766567583259,0.0460754,86884.0,86869.0,0.11502]
[1766567584271,0.01151012,86880.0,86869.0,0.11502]
[1766567585573,0.01150999,86881.0,86869.0,0.11502]
[1766567585744,0.01151012,86880.0,86869.0,0.11502]
[1766567586145,0.01151012,86880.0,86869.0,0.11508988]
[1766567586349,0.01150999,86881.0,86869.0,0.11508988]
[1766567586645,0.01151012,86880.0,86869.0,0.11508988]
[1766567586855,0.01150986,86882.0,86870.0,0.12653145]
[1766567587012,0.01150973,86883.0,86872.0,0.11502]
[1766567587209,0.01150959,86884.0,86874.0,0.11502]
[1766567587415,0.01152,86885.0,86874.0,0.11502]
[1766567587619,0.01150959,86884.0,86874.0,0.11502]
[1766567588240,0.02302946,86885.0,86874.0,0.11502]
[1766567590063,0.01150959,86884.0,86874.0,0.11502]
[1766567590205,0.01152,86885.0,86874.0,0.11502]
[1766567591178,0.02302946,86885.0,86874.0,0.11502]
[1766567591404,0.01152,86885.0,86874.0,0.11502]
[1766567591606,0.01152,86885.0,86874.0,0.12653092]
[1766567591811,0.01152,86885.0,86874.0,0.01151092]
[1766567591989,0.01152,86885.0,86875.0,0.11502]
[1766567592697,0.01152,86885.0,86875.0,0.12653079]
[1766567593057,0.01152,86885.0,86875.0,0.11502]
[1766567593746,0.02302946,86885.0,86875.0,0.11502]
[1766567593944,0.01152,86885.0,86875.0,0.11502]
[1766567594166,0.0362718,86888.0,86873.0,0.02304]
[1766567594167,0.02476274,86889.0,86877.0,0.11502]
[1766567594366,0.01152,86887.0,86877.0,0.11502]
[1766567594974,0.0230292,86887.0,86877.0,0.11502]
[1766567595175,0.01152,86887.0,86878.0,0.11502]
[1766567596033,0.01152,86887.0,86879.0,0.11502]
[1766567596410,0.01152,86887.0,86884.0,0.00020616]
[1766567596571,0.01152,86887.0,86884.0,1.6e-07]
[1766567597855,0.08057535,86887.0,86884.0,1.6e-07]
[1766567598038,0.05754707,86886.0,86884.0,1.6e-07]
[1766567598180,0.02476274,86886.0,86884.0,1.6e-07]
[1766567599088,0.08057535,86887.0,86884.0,1.6e-07]
[1766567599289,0.01150946,86885.0,86879.0,0.11502]
[1766567599750,0.01150933,86886.0,86879.0,0.11502]
[1766567600974,0.03628274,86887.0,86879.0,0.11502]
[1766567601183,0.01152,86887.0,86879.0,0.11502]
[1766567601381,0.03627167,86889.0,86879.0,0.11502]
[1766567601522,0.05412512,86890.0,86879.0,0.11502]
[1766567601748,0.04261632,86890.0,86879.0,0.11502]
[1766567601947,0.011314,86890.0,86884.0,0.11502]
[1766567603829,0.05585906,86893.0,86884.0,0.11502]
[1766567604035,0.0115084,86893.0,86884.0,0.11502]
[1766567604687,0.01150853,86892.0,86884.0,0.11502]
[1766567605201,0.0115084,86893.0,86884.0,0.11502]
[1766567605419,0.02302827,86894.0,86884.0,0.11502]
[1766567605798,0.0115084,86893.0,86884.0,0.11502]
[1766567605996,0.04785959,86894.0,86884.0,0.12654]
[1766567606204,0.0115084,86893.0,86884.0,0.12654]
[1766567606403,0.02302827,86894.0,86884.0,0.12654]
[1766567606404,0.04785959,86894.0,86884.0,0.12654]
[1766567606648,0.02302827,86894.0,86884.0,0.12654]
[1766567607973,0.01152,86894.0,86884.0,0.13804959]
[1766567608193,0.01152,86894.0,86886.0,0.11555]
[1766567608537,0.05587047,86899.0,86890.0,0.1270588]
[1766567608738,0.01152,86899.0,86891.0,0.11555]
[1766567609388,0.01152,86901.0,86891.0,0.11555]
[1766567609597,0.01152,86901.0,86892.0,0.12705853]
[1766567609924,0.01152,86902.0,86892.0,0.11555]
[1766567610129,0.03635132,86902.0,86896.0,0.11555]
[1766567610324,0.01152,86902.0,86896.0,0.11555]
[1766567610532,0.01152,86906.0,86896.0,0.127058]
[1766567610912,0.01152,86906.0,86896.0,0.11555]
[1766567611069,0.01152,86906.0,86896.0,0.127058]
[1766567611268,0.01187705,86906.0,86896.0,0.127058]
[1766567611755,0.01187705,86906.0,86896.0,0.11555]
[1766567612439,0.01187705,86906.0,86896.0,0.127058]
[1766567613941,0.01187705,86906.0,86898.0,0.11555]
[1766567614141,0.01187705,86906.0,86898.0,0.12705774]
[1766567614341,0.01187705,86906.0,86899.0,0.11555]
[1766567615586,0.01187705,86906.0,86899.0,0.115001]
[1766567615804,0.08091765,86906.0,86894.0,0.01152]
[1766567615948,0.01150681,86905.0,86894.0,0.16458594]
[1766567616147,0.01150708,86903.0,86894.0,0.16458594]
[1766567616353,0.08264721,86902.0,86894.0,0.01152]
[1766567616586,0.08264721,86902.0,86894.0,3.34e-06]
[1766567617356,0.01150774,86898.0,86894.0,3.34e-06]
[1766567617563,0.01707774,86898.0,86894.0,3.34e-06]
[1766567617773,0.01150787,86897.0,86894.0,3.34e-06]
[1766567617974,0.01707774,86898.0,86894.0,3.34e-06]
[1766567618514,0.00557,86898.0,86894.0,3.34e-06]
[1766567619168,0.01707774,86898.0,86894.0,3.34e-06]
[1766567619905,0.01150787,86897.0,86894.0,3.34e-06]
[1766567620709,0.06904788,86897.0,86894.0,3.34e-06]
[1766567621547,0.05754054,86896.0,86894.0,3.34e-06]
[1766567621953,0.01150814,86895.0,86889.0,0.01152]
[1766567622569,0.011508,86896.0,86889.0,0.01152]
[1766567622712,0.011508,86896.0,86886.0,0.11851]
[1766567622912,0.011508,86896.0,86889.0,0.01152]
[1766567623136,0.06904788,86897.0,86889.0,0.01152]
[1766567623344,0.01707774,86898.0,86889.0,0.01152]
[1766567624075,0.00557,86898.0,86889.0,0.01152]
[1766567624464,0.01707774,86898.0,86889.0,0.01152]
[1766567625747,0.01097843,86898.0,86889.0,0.01152]
[1766567626389,0.01150787,86897.0,86889.0,0.01152]
[1766567626731,0.01097843,86898.0,86889.0,0.01152]
[1766567626873,0.01150814,86895.0,86889.0,0.01152]
[1766567627438,0.011508,86896.0,86889.0,0.01152]
[1766567628148,0.01150814,86895.0,86889.0,0.01152]
[1766567629288,0.01097843,86898.0,86889.0,0.01152]
[1766567629467,0.01150761,86899.0,86889.0,0.01152]
[1766567629468,0.03629561,86899.0,86889.0,0.01152]
[1766567629836,0.01150774,86898.0,86889.0,0.01152]
[1766567630429,0.01150787,86897.0,86889.0,0.01152]
[1766567630637,0.01150774,86898.0,86889.0,0.01152]
[1766567630951,0.01150787,86897.0,86889.0,0.01152]
[1766567631831,0.01150774,86898.0,86889.0,0.01152]
[1766567634835,0.01150787,86897.0,86889.0,0.01152]
[1766567635986,0.011508,86896.0,86889.0,0.01152]
[1766567636186,0.01150787,86897.0,86889.0,0.01152]
[1766567636545,0.03629574,86898.0,86889.0,0.01152]
[1766567636886,0.01150774,86898.0,86889.0,0.01152]
[1766567637091,0.01150787,86897.0,86889.0,0.01152]
[1766567637898,0.01150774,86898.0,86889.0,0.01152]
[1766567638408,0.01150787,86897.0,86889.0,0.01152]
[1766567639731,0.05753673,86901.0,86889.0,0.01152]
[1766567639877,0.01150774,86898.0,86889.0,0.01152]
[1766567640279,0.01150787,86897.0,86889.0,0.01152]
[1766567640780,0.011508,86896.0,86889.0,0.01152]
[1766567641114,0.01150814,86895.0,86889.0,0.01152]
[1766567641319,0.011508,86896.0,86889.0,0.01152]
[1766567641515,0.01150814,86895.0,86889.0,0.01152]
[1766567641712,0.01150787,86897.0,86889.0,0.01152]
[1766567642994,0.06904683,86898.0,86889.0,0.01152]
[1766567644216,0.01150787,86897.0,86889.0,0.01152]
[1766567645993,0.06904683,86898.0,86889.0,0.01152]
[1766567646194,0.01150774,86898.0,86889.0,0.01152]
[1766567646395,0.01150761,86899.0,86889.0,0.01152]
[1766567646708,0.06904473,86901.0,86889.0,0.01152]
[1766567647138,0.02302721,86902.0,86889.0,0.01152]
[1766567647353,0.01152,86902.0,86889.0,0.02302893]
[1766567647550,0.02302721,86902.0,86889.0,0.01152]
[1766567647714,0.01152,86902.0,86891.0,0.01150867]
[1766567647913,0.01152,86902.0,86892.0,0.01150853]
[1766567648114,0.01152,86902.0,86893.0,0.0115084]
[1766567648341,0.01152,86902.0,86894.0,0.11772]
[1766567648534,0.01152,86902.0,86894.0,0.12922827]
[1766567648764,0.01152,86902.0,86894.0,0.11772]
[1766567649355,0.01152,86903.0,86894.0,0.11772]
[1766567649719,0.03102767,86902.0,86894.0,0.11772]
[1766567650457,0.03102767,86902.0,86895.0,0.12922814]
[1766567650771,0.01152,86903.0,86897.0,0.01150787]
[1766567650931,0.01152,86903.0,86897.0,0.11772]
[1766567655291,0.03637083,86905.0,86897.0,0.11772]
[1766567658336,0.01152,86905.0,86897.0,0.11772]
[1766567659145,0.05623555,86906.0,86905.0,0.000549]
[1766567659371,0.05623555,86906.0,86897.0,0.12922787]
[1766567659372,0.03138472,86906.0,86897.0,0.12922787]
[1766567659870,0.05623555,86906.0,86899.0,0.11772]
[1766567660071,0.03138472,86906.0,86899.0,0.11772]
[1766567660694,0.05623555,86906.0,86899.0,0.11772]
[1766567660851,0.03138472,86906.0,86899.0,0.11772]
[1766567661274,0.05623555,86906.0,86899.0,0.11772]
[1766567661479,0.03138472,86906.0,86899.0,0.11772]
[1766567662191,0.05623555,86906.0,86899.0,0.11772]
[1766567662397,0.03138472,86906.0,86899.0,0.11772]
[1766567662981,0.05623555,86906.0,86899.0,0.11772]
[1766567663204,0.03138472,86906.0,86899.0,0.12922761]
[1766567663398,0.03138472,86906.0,86900.0,0.01150747]
[1766567663639,4.72e-06,86908.0,86901.0,0.11772]
[1766567663854,0.02485083,86909.0,86901.0,0.12922734]
[1766567664056,0.03563168,86908.0,86901.0,0.12922734]
[1766567664265,0.02485083,86910.0,86901.0,0.12922734]
[1766567664416,0.03563169,86909.0,86901.0,0.12922734]
[1766567664639,0.01078086,86908.0,86901.0,0.12922734]
[1766567664858,0.02485083,86910.0,86901.0,0.12922734]
[1766567665060,0.02485083,86910.0,86903.0,0.11772]
[1766567666984,0.01152,86911.0,86903.0,0.11772]
[1766567667453,0.03637083,86911.0,86903.0,0.11772]
[1766567667653,0.01152,86911.0,86903.0,0.11772]
[1766567668038,0.03635111,86911.0,86903.0,0.11772]
[1766567668316,0.01152,86911.0,86903.0,0.11772]
[1766567668809,0.09886531,86917.0,86900.0,0.02302747]
[1766567668810,0.02483111,86916.0,86909.0,0.11677]
[1766567669022,0.02483111,86918.0,86909.0,0.12827628]
[1766567669166,0.01077784,86917.0,86910.0,0.01150615]
[1766567669370,0.01152,86919.0,86909.0,0.12827628]
[1766567669593,0.01077535,86918.0,86911.0,0.01150602]
[1766567669798,0.01152,86919.0,86909.0,0.12827628]
[1766567670174,0.0429,86919.0,86909.0,0.11677]
[1766567670701,0.0429,86919.0,86909.0,0.12827628]
[1766567670896,0.0429,86919.0,86910.0,0.01150615]
[1766567671236,0.0429,86919.0,86911.0,0.01150602]
[1766567671418,0.01152,86919.0,86912.0,0.01150589]
[1766567671796,0.01152,86919.0,86913.0,0.01150575]
[1766567671995,0.01152,86919.0,86912.0,0.01150589]
[1766567672181,0.01152,86919.0,86911.0,0.01150602]
[1766567672409,0.01152,86919.0,86913.0,0.01150575]
[1766567672569,0.01152,86924.0,86916.0,0.12827536]
[1766567672766,0.01152,86924.0,86917.0,0.01150522]
[1766567672987,0.01152,86924.0,86916.0,0.12827536]
[1766567673406,0.01152,86924.0,86916.0,0.11677]
[1766567674977,0.01152,86924.0,86916.0,0.116221]
[1766567675101,0.01150456,86922.0,86911.0,0.01152]
[1766567675556,0.01150469,86921.0,86911.0,0.01152]
[1766567675786,0.01150483,86920.0,86911.0,0.01152]
[1766567675982,0.01150483,86920.0,86910.0,0.11677]
[1766567675983,0.01150522,86917.0,86910.0,0.01152]
[1766567676117,0.04343522,86917.0,86910.0,0.01152]
[1766567676959,0.03193,86917.0,86910.0,0.01152]
[1766567677381,0.04343522,86917.0,86910.0,0.01152]
[1766567677593,0.06826633,86917.0,86910.0,0.01152]
[1766567677816,0.01150536,86916.0,86910.0,0.01152]
[1766567678396,0.01150549,86915.0,86910.0,0.01152]
[1766567678605,0.02483111,86916.0,86910.0,0.01152]
[1766567678798,0.06826633,86917.0,86910.0,0.01152]
[1766567679226,0.05676111,86917.0,86910.0,0.01152]
[1766567679398,0.03193,86917.0,86910.0,0.01152]
[1766567680916,0.03193,86917.0,86910.0,0.02302615]
[1766567681127,0.031381,86917.0,86911.0,0.01150602]
[1766567681780,0.03138,86923.0,86912.0,0.01150589]
[1766567682396,0.03138,86923.0,86913.0,0.01150575]
[1766567683495,0.03138,86923.0,86912.0,0.01150589]
[1766567683701,0.03138,86923.0,86911.0,0.01150602]
[1766567683896,0.03138,86923.0,86912.0,0.01157577]
[1766567684098,0.03138,86923.0,86913.0,0.01150575]
[1766567684262,0.03138,86923.0,86912.0,0.01157577]
[1766567685100,0.03138,86923.0,86913.0,0.01150575]
[1766567685679,0.03138,86923.0,86914.0,0.01150562]
[1766567686097,0.00600961,86925.0,86918.0,0.01150509]
[1766567686301,0.00600961,86925.0,86915.0,0.12223]
[1766567686302,0.00545961,86925.0,86919.0,0.13373496]
[1766567686514,0.01152,86927.0,86919.0,0.13373496]
[1766567686715,0.01152,86927.0,86919.0,0.12223]
[1766567689484,0.01152,86927.0,86919.0,0.13373496]
[1766567691260,0.01152,86927.0,86920.0,0.01150483]
[1766567691832,0.01152,86927.0,86919.0,0.13373496]
[1766567692061,0.01152,86927.0,86920.0,0.01150483]
[1766567692529,0.01152,86927.0,86921.0,0.01150469]
[1766567692923,0.01152,86927.0,86919.0,0.19125938]
[1766567692924,0.01152,86927.0,86920.0,0.01150483]
[1766567693128,0.01152,86927.0,86919.0,0.13373496]
[1766567693522,0.01152,86927.0,86919.0,0.12223]
[1766567700485,0.06771448,86931.0,86920.0,0.01152]
[1766567700697,0.06771448,86931.0,86921.0,0.11624]
[1766567700698,0.02483111,86931.0,86921.0,0.11624]
[1766567700841,0.04825422,86933.0,86921.0,0.11624]
[1766567701053,0.04825422,86933.0,86921.0,0.12774469]
[1766567701239,0.04825422,86933.0,86921.0,0.11624]
[1766567701586,0.01150324,86932.0,86921.0,0.11624]
[1766567702088,0.01150337,86931.0,86921.0,0.11624]
[1766567702323,0.0115035,86930.0,86921.0,0.11624]
[1766567702489,0.03633448,86931.0,86921.0,0.11624]
[1766567702693,0.01150337,86931.0,86921.0,0.11624]
[1766567702893,0.0115035,86930.0,86921.0,0.11624]
[1766567703497,0.01150337,86931.0,86921.0,0.11624]
[1766567703879,0.03633435,86932.0,86921.0,0.11624]
[1766567704256,0.03675111,86933.0,86924.0,0.0115043]
[1766567704454,0.01192,86933.0,86925.0,0.11624]
[1766567704570,0.0004,86933.0,86930.0,0.0115035]
[1766567704772,0.0004,86933.0,86929.0,0.01150364]
[1766567704973,0.01152,86936.0,86930.0,0.0115035]
[1766567705355,0.01221384,86939.0,86934.0,0.11624]
[1766567705689,0.00357296,86939.0,86934.0,0.11624]
[1766567706028,0.00357296,86939.0,86934.0,0.115691]
[1766567706591,0.01150297,86934.0,86927.0,0.12776]
[1766567706816,0.01150297,86934.0,86921.0,0.11624]
[1766567706817,0.00055,86927.0,86921.0,0.11624]
[1766567707013,0.01150324,86932.0,86922.0,0.01152]
[1766567707267,0.04425,86931.0,86922.0,0.01152]
[1766567707470,0.04425,86929.0,86920.0,0.01152]
[1766567707648,0.04423377,86928.0,86920.0,0.01152]
[1766567707850,0.0115039,86927.0,86920.0,0.01152]
[1766567708062,0.04423377,86928.0,86920.0,0.01152]
[1766567708465,0.03273,86928.0,86920.0,0.01152]
[1766567712605,0.03273,86928.0,86920.0,0.02302483]
[1766567712809,0.03273,86928.0,86920.0,0.01152]
[1766567720810,0.03273,86928.0,86920.0,0.02302483]
[1766567721265,0.03273,86928.0,86921.0,0.01150469]
[1766567721468,0.02481701,86929.0,86923.0,0.01150443]
[1766567721690,0.0437,86934.0,86923.0,0.01150443]
[1766567721892,0.0437,86934.0,86922.0,0.01150456]
[1766567722094,0.03218,86933.0,86922.0,0.01150456]
[1766567722347,0.03218,86933.0,86923.0,0.01150443]
[1766567722528,0.03218,86933.0,86922.0,0.01150456]
[1766567723327,0.03218,86933.0,86923.0,0.01150443]
[1766567723527,0.03218,86933.0,86924.0,0.0115043]
[1766567723889,0.01152,86932.0,86925.0,0.01150417]
[1766567724550,0.01152,86932.0,86924.0,0.0115043]
[1766567724754,0.01152,86932.0,86923.0,0.01150443]
[1766567724951,0.01152,86932.0,86924.0,0.0115043]
[1766567725151,0.01152,86932.0,86923.0,0.01150443]
[1766567725336,0.01152,86932.0,86924.0,0.0115043]
[1766567725534,0.01152,86932.0,86922.0,0.01150456]
[1766567725781,0.01152,86932.0,86923.0,0.0690261]
[1766567725980,0.01152,86932.0,86924.0,0.0115043]
[1766567726216,0.01152,86932.0,86925.0,0.01150417]
[1766567726416,0.03218,86933.0,86925.0,0.01150417]
[1766567726717,0.01152,86933.0,86924.0,0.0115043]
[1766567727390,0.01152,86933.0,86925.0,0.01150417]
[1766567727935,0.01152,86935.0,86924.0,0.0115043]
[1766567728395,0.01152,86935.0,86923.0,0.12774443]
[1766567728667,0.01152,86935.0,86924.0,0.0115043]
[1766567729724,0.01152,86935.0,86925.0,0.01150417]
[1766567729952,0.01152,86935.0,86924.0,0.0115043]
[1766567730533,0.01152,86935.0,86925.0,0.01150417]
[1766567731290,0.01152,86935.0,86923.0,0.12774443]
[1766567731618,0.01152,86935.0,86926.0,0.01150403]
[1766567731851,0.01152,86935.0,86927.0,0.0115039]
[1766567732122,0.01152,86935.0,86928.0,0.11819]
[1766567732349,0.01152,86935.0,86928.0,0.12969377]
[1766567732791,0.36732838,86940.0,86929.0,0.01150364]
[1766567732926,0.01152,86937.0,86929.0,0.11819]
[1766567737350,0.01150231,86939.0,86929.0,0.11819]
[1766567737546,0.02228133,86938.0,86929.0,0.11819]
[1766567737705,0.01150245,86938.0,86929.0,0.11819]
[1766567738447,0.01150258,86937.0,86929.0,0.11819]
[1766567739678,0.01150284,86935.0,86929.0,0.11819]
[1766567739854,0.01150297,86934.0,86929.0,0.117091]
[1766567740079,0.01150271,86936.0,86929.0,0.117091]
[1766567740280,0.01150284,86935.0,86929.0,0.117091]
[1766567740587,0.01150311,86933.0,86929.0,0.117091]
[1766567740753,0.01150284,86935.0,86929.0,0.117091]
[1766567740902,0.02156,86932.0,86928.0,0.01152]
[1766567741111,0.01004,86931.0,86925.0,0.01152]
[1766567741775,0.02483345,86934.0,86925.0,0.01152]
[1766567742483,0.08234881,86934.0,86925.0,0.01152]
[1766567742711,0.01150311,86933.0,86925.0,0.01152]
[1766567742924,0.06901918,86933.0,86925.0,0.01152]
[1766567743123,0.01150324,86932.0,86925.0,0.01152]
[1766567743997,0.03633656,86933.0,86925.0,0.01152]
[1766567744292,0.02483345,86933.0,86925.0,0.01152]
[1766567744494,0.01150297,86934.0,86925.0,0.01152]
[1766567746200,0.03635345,86935.0,86925.0,0.12632]
[1766567746402,0.01152,86935.0,86925.0,0.12632]
[1766567746613,0.01152,86935.0,86925.0,0.13782417]
[1766567746972,0.01152,86935.0,86926.0,0.01150403]
[1766567747187,0.01152,86935.0,86925.0,0.13782417]
[1766567747586,0.01152,86935.0,86926.0,0.12630403]
[1766567747797,0.010971,86935.0,86926.0,0.1148]
[1766567747998,0.010971,86935.0,86927.0,0.0115039]
[1766567748201,0.010971,86935.0,86927.0,0.1263039]
[1766567748398,0.010971,86935.0,86929.0,0.01150364]
[1766567748829,0.010971,86935.0,86929.0,0.12630364]
[1766567750125,0.01152,86937.0,86930.0,0.0115035]
[1766567750279,0.01152,86937.0,86929.0,0.12630364]
[1766567750468,0.01152,86937.0,86929.0,0.1148]
[1766567750871,0.02302258,86937.0,86929.0,0.1148]
[1766567752207,0.01152,86937.0,86929.0,0.1148]
[1766567754487,0.02302258,86937.0,86929.0,0.09935357]
[1766567754705,0.00244,86924.0,86921.0,0.01152]
[1766567754936,0.00244,86924.0,86919.0,0.01152]
[1766567755146,0.00244,86924.0,86914.0,0.01150562]
[1766567755147,0.00244,86924.0,86917.0,0.01152]
[1766567755715,0.01150456,86922.0,86917.0,0.010971]
[1766567755928,0.01150456,86922.0,86917.0,1e-06]
[1766567756140,0.01150443,86923.0,86912.0,0.01158988]
[1766567756355,0.36732838,86922.0,86912.0,0.01158988]
[1766567757308,0.36732838,86922.0,86913.0,0.12630575]
[1766567757580,0.02302417,86925.0,86913.0,0.12630575]
[1766567757719,0.01152,86925.0,86914.0,0.01150562]
[1766567758343,0.01152,86925.0,86915.0,0.01150549]
[1766567758577,0.01152,86925.0,86914.0,0.01150562]
[1766567758757,0.01152,86925.0,86915.0,0.01150549]
[1766567758960,0.01152,86925.0,86916.0,0.01150536]
[1766567759149,0.01152,86925.0,86915.0,0.01150549]
[1766567760023,0.01152,86925.0,86916.0,0.01150536]
[1766567762430,0.01152,86925.0,86914.0,0.01150562]
[1766567762587,0.01152,86925.0,86915.0,0.01150549]
[1766567763395,0.00846537,86927.0,86925.0,0.000549]
[1766567763655,0.00846537,86927.0,86916.0,0.12632536]
[1766567763656,0.00846537,86927.0,86918.0,0.01150509]
[1766567763798,0.00846537,86927.0,86919.0,0.11482]
[1766567764012,0.00632688,86927.0,86920.0,0.01150483]
[1766567764447,0.00577788,86927.0,86920.0,0.01150483]
[1766567764647,0.02482383,86936.0,86923.0,0.11482]
[1766567764847,0.01152,86934.0,86923.0,0.11482]
[1766567765051,0.02302297,86934.0,86923.0,0.11482]
[1766567765254,0.01152,86934.0,86923.0,0.11482]
[1766567765454,0.02302297,86934.0,86923.0,0.11482]
[1766567765665,0.0478468,86934.0,86923.0,0.11482]
[1766567766023,0.01150311,86933.0,86923.0,0.11482]
[1766567766654,0.01150324,86932.0,86923.0,0.11482]
[1766567766852,0.03632694,86933.0,86923.0,0.11482]
[1766567767716,0.01150324,86932.0,86923.0,0.11482]
[1766567767956,0.02482383,86933.0,86923.0,0.11482]
[1766567768158,0.01150311,86933.0,86923.0,0.11482]
[1766567768401,0.01150324,86932.0,86923.0,0.11482]
[1766567768779,0.01150311,86933.0,86923.0,0.11482]
[1766567770659,0.01150324,86932.0,86923.0,0.11482]
[1766567771970,0.02482383,86933.0,86923.0,0.11482]
[1766567772132,0.03634383,86934.0,86923.0,0.11482]
[1766567772342,0.02302297,86934.0,86923.0,0.11482]
[1766567772870,0.0478468,86934.0,86923.0,0.11482]
[1766567773395,0.03634383,86934.0,86923.0,0.12632443]
[1766567773601,0.01152,86934.0,86923.0,0.12632443]
[1766567773956,0.01152,86934.0,86924.0,0.0115043]
[1766567774362,0.01152,86934.0,86923.0,0.12632443]
[1766567775162,0.01150324,86932.0,86923.0,0.11482]
[1766567775396,0.01150337,86931.0,86922.0,0.01152]
[1766567775602,0.0115035,86930.0,86922.0,0.01152]
[1766567775808,0.01150364,86929.0,86919.0,0.01152]
[1766567776137,0.0115035,86930.0,86919.0,0.01152]
[1766567776737,0.03632707,86932.0,86919.0,0.02302496]
[1766567776936,0.01150337,86931.0,86919.0,0.02302496]
[1766567778893,0.02482383,86933.0,86922.0,0.01150456]
[1766567779101,0.01150311,86933.0,86921.0,0.01150469]
[1766567779310,0.01150311,86933.0,86920.0,0.01150483]
[1766567779720,0.03632694,86933.0,86921.0,0.01150469]
[1766567780508,0.02482383,86933.0,86922.0,0.01150456]
[1766567780649,0.01152,86934.0,86923.0,0.01150443]
[1766567781467,0.02302297,86934.0,86922.0,0.01150456]
[1766567781784,0.01152,86934.0,86923.0,0.01150443]
[1766567781982,0.01152,86934.0,86924.0,0.0115043]
[1766567782392,0.01152,86934.0,86923.0,0.01150443]
[1766567782568,0.01152,86934.0,86922.0,0.01150456]
[1766567782746,0.02302297,86934.0,86922.0,0.01150456]
[1766567783000,0.01152,86934.0,86922.0,0.01150456]
[1766567783850,0.01152,86934.0,86923.0,0.0690266]
[1766567784048,0.01152,86934.0,86926.0,0.01150403]
[1766567784451,0.01152,86934.0,86927.0,0.0115039]
[1766567784849,0.010971,86934.0,86928.0,0.01150377]
[1766567785226,0.010971,86934.0,86922.0,0.05752242]
[1766567785494,0.010971,86934.0,86798.0,0.0004]
[1766567785495,0.010971,86934.0,86924.0,0.1263243]
[1766567785651,0.010971,86934.0,86924.0,0.11482]
[1766567786807,0.02247397,86934.0,86924.0,0.11482]
[1766567786998,0.0115035,86930.0,86919.0,0.01152]
[1766567787357,0.01150377,86928.0,86919.0,0.01152]
[1766567787575,0.01150364,86929.0,86919.0,0.01152]
[1766567787980,0.0115035,86930.0,86919.0,0.01152]